[Event "Titled Tuesday Blitz February 07 Early 2023"]
[White "Mazurkiewicz, Michal"]
[Black "Orzech, Dominik"]
[WhiteFideId "1124943"]
[BlackFideId "1115065"]
[WhiteElo "2145"]
[BlackElo "2308"]
[Result "1-0"]
[Round "09"]
[TimeControl "180+2"]
[Date "2023.02.07"]
[WhiteClock "0:00:15"]
[BlackClock "0:01:43"]

1. e4 {[%clk 0:02:52]}  c6 {[%clk 0:02:39]} 2. d3 {[%clk 0:02:52]}  d5 {[%clk 0:02:40]} 3. Nd2 {[%clk 0:02:52]}  Nf6 {[%clk 0:02:39]} 4. Ngf3 {[%clk 0:02:52]}  Bg4 {[%clk 0:02:38]} 5. h3 {[%clk 0:02:51]}  Bxf3 {[%clk 0:02:37]} 6. Qxf3 {[%clk 0:02:52]}  e6 {[%clk 0:02:37]} 7. g3 {[%clk 0:02:52]}  Nbd7 {[%clk 0:02:36]} 8. Bg2 {[%clk 0:02:53]}  g6 {[%clk 0:02:36]} 9. O-O {[%clk 0:02:53]}  Bg7 {[%clk 0:02:37]} 10. Qe2 {[%clk 0:02:54]}  O-O {[%clk 0:02:36]} 11. e5 {[%clk 0:02:54]}  Ne8 {[%clk 0:02:37]} 12. d4 {[%clk 0:02:54]}  c5 {[%clk 0:02:37]} 13. c3 {[%clk 0:02:55]}  Qb6 {[%clk 0:02:37]} 14. Nf3 {[%clk 0:02:54]}  Nc7 {[%clk 0:02:36]} 15. Bf4 {[%clk 0:02:49]}  Rfc8 {[%clk 0:02:32]} 16. h4 {[%clk 0:02:46]}  cxd4 {[%clk 0:02:31]} 17. cxd4 {[%clk 0:02:46]}  Nb5 {[%clk 0:02:31]} 18. Qd2 {[%clk 0:02:45]}  Rc4 {[%clk 0:02:30]} 19. b3 {[%clk 0:02:33]}  Rc6 {[%clk 0:02:27]} 20. Rac1 {[%clk 0:02:31]}  Rac8 {[%clk 0:02:26]} 21. Be3 {[%clk 0:01:44]}  Nc3 {[%clk 0:02:18]} 22. Ng5 {[%clk 0:01:33]}  h6 {[%clk 0:02:15]} 23. Nh3 {[%clk 0:01:34]}  Ne4 {[%clk 0:02:15]} 24. Bxe4 {[%clk 0:01:31]}  dxe4 {[%clk 0:02:15]} 25. d5 {[%clk 0:00:58]}  Rxc1 {[%clk 0:02:10]} 26. Bxb6 {[%clk 0:00:57]}  Rxf1+ {[%clk 0:02:09]} 27. Kxf1 {[%clk 0:00:58]}  axb6 {[%clk 0:02:04]} 28. dxe6 {[%clk 0:00:58]}  Nxe5 {[%clk 0:02:04]} 29. exf7+ {[%clk 0:00:53]}  Kxf7 {[%clk 0:02:05]} 30. Qd5+ {[%clk 0:00:52]}  Kf6 {[%clk 0:02:02]} 31. Nf4 {[%clk 0:00:47]}  Rc6 {[%clk 0:01:56]} 32. Qxe4 {[%clk 0:00:39]}  h5 {[%clk 0:01:52]} 33. b4 {[%clk 0:00:32]}  Kf7 {[%clk 0:01:44]} 34. b5 {[%clk 0:00:32]}  Rc7 {[%clk 0:01:44]} 35. Qd5+ {[%clk 0:00:28]}  Ke7 {[%clk 0:01:44]} 36. Qe6+ {[%clk 0:00:23]}  Kf8 {[%clk 0:01:44]} 37. Qd6+ {[%clk 0:00:15]}  Re7 {[%clk 0:01:43]} 38. Nd5 {[%clk 0:00:15]} 1-0


[Site "https://www.chess.com"]

[Event "Titled Tuesday Blitz February 07 Early 2023"]
[White "Mushini Ajay"]
[Black "Gurevich, Dmitry"]
[WhiteFideId "35066188"]
[BlackFideId "2000407"]
[WhiteElo "2310"]
[BlackElo "2393"]
[Result "0-1"]
[Round "09"]
[TimeControl "180+2"]
[Date "2023.02.07"]
[WhiteClock "0:00:08"]
[BlackClock "0:01:24"]

1. e4 {[%clk 0:02:39]}  c5 {[%clk 0:02:58]} 2. d4 {[%clk 0:02:39]}  cxd4 {[%clk 0:02:58]} 3. c3 {[%clk 0:02:40]}  dxc3 {[%clk 0:02:58]} 4. Nxc3 {[%clk 0:02:41]}  d6 {[%clk 0:02:58]} 5. Nf3 {[%clk 0:02:42]}  e6 {[%clk 0:02:56]} 6. Bc4 {[%clk 0:02:42]}  a6 {[%clk 0:02:56]} 7. O-O {[%clk 0:02:43]}  Be7 {[%clk 0:02:56]} 8. Qe2 {[%clk 0:02:43]}  b5 {[%clk 0:02:55]} 9. Bb3 {[%clk 0:02:42]}  Nf6 {[%clk 0:02:54]} 10. Rd1 {[%clk 0:02:41]}  Nbd7 {[%clk 0:02:51]} 11. e5 {[%clk 0:02:38]}  dxe5 {[%clk 0:02:51]} 12. Nxe5 {[%clk 0:02:37]}  Qb6 {[%clk 0:02:49]} 13. Be3 {[%clk 0:02:22]}  Qb7 {[%clk 0:02:48]} 14. Nxf7 {[%clk 0:02:10]}  Kxf7 {[%clk 0:02:45]} 15. Bxe6+ {[%clk 0:02:10]}  Kxe6 {[%clk 0:02:43]} 16. Bc5+ {[%clk 0:02:04]}  Ne5 {[%clk 0:02:41]} 17. Bd4 {[%clk 0:01:53]}  Kf7 {[%clk 0:02:24]} 18. Bxe5 {[%clk 0:01:44]}  Re8 {[%clk 0:02:24]} 19. Qd3 {[%clk 0:01:25]}  Be6 {[%clk 0:02:18]} 20. h3 {[%clk 0:01:20]}  Rad8 {[%clk 0:02:13]} 21. Qg3 {[%clk 0:01:17]}  b4 {[%clk 0:02:07]} 22. Ne2 {[%clk 0:01:12]}  Qe4 {[%clk 0:02:04]} 23. Nd4 {[%clk 0:00:48]}  Nh5 {[%clk 0:01:53]} 24. Qh2 {[%clk 0:00:45]}  Bf6 {[%clk 0:01:47]} 25. Bxf6 {[%clk 0:00:32]}  Nxf6 {[%clk 0:01:45]} 26. Qc7+ {[%clk 0:00:25]}  Rd7 {[%clk 0:01:42]} 27. Qc5 {[%clk 0:00:20]}  Red8 {[%clk 0:01:33]} 28. Nxe6 {[%clk 0:00:09]}  Rxd1+ {[%clk 0:01:27]} 29. Kh2 {[%clk 0:00:10]}  Qxe6 {[%clk 0:01:24]} 30. Rxd1 {[%clk 0:00:08]} 0-1


[Site "https://www.chess.com"]

[Event "Titled Tuesday Blitz February 07 Early 2023"]
[White "Rudzinska, Michalina"]
[Black "Florescu, Codrut-Constantin"]
[WhiteFideId "1172883"]
[BlackFideId "1202200"]
[WhiteElo "2244"]
[BlackElo "2259"]
[Result "1-0"]
[Round "09"]
[TimeControl "180+2"]
[Date "2023.02.07"]
[WhiteClock "0:00:50"]
[BlackClock "0:00:23"]

1. e4 {[%clk 0:03:00]}  c5 {[%clk 0:02:57]} 2. Nf3 {[%clk 0:02:59]}  e6 {[%clk 0:02:57]} 3. d4 {[%clk 0:02:59]}  cxd4 {[%clk 0:02:57]} 4. Nxd4 {[%clk 0:03:00]}  Nf6 {[%clk 0:02:56]} 5. Bd3 {[%clk 0:02:59]}  Nc6 {[%clk 0:02:54]} 6. Nxc6 {[%clk 0:02:59]}  dxc6 {[%clk 0:02:55]} 7. Nd2 {[%clk 0:02:56]}  e5 {[%clk 0:02:55]} 8. Nc4 {[%clk 0:02:57]}  Qc7 {[%clk 0:02:52]} 9. O-O {[%clk 0:02:57]}  Be6 {[%clk 0:02:51]} 10. a4 {[%clk 0:02:58]}  Bc5 {[%clk 0:02:48]} 11. Qe2 {[%clk 0:02:57]}  O-O {[%clk 0:02:47]} 12. Be3 {[%clk 0:02:53]}  Bxe3 {[%clk 0:02:46]} 13. Qxe3 {[%clk 0:02:53]}  b6 {[%clk 0:02:43]} 14. Rfe1 {[%clk 0:02:48]}  Nd7 {[%clk 0:02:43]} 15. Qg3 {[%clk 0:02:48]}  f6 {[%clk 0:02:39]} 16. Ne3 {[%clk 0:02:47]}  Nc5 {[%clk 0:02:36]} 17. Bc4 {[%clk 0:02:41]}  Bxc4 {[%clk 0:02:34]} 18. Nxc4 {[%clk 0:02:42]}  Rfd8 {[%clk 0:02:31]} 19. b4 {[%clk 0:02:41]}  Ne6 {[%clk 0:02:30]} 20. Ne3 {[%clk 0:02:41]}  Nf4 {[%clk 0:02:21]} 21. Qf3 {[%clk 0:02:37]}  Rd2 {[%clk 0:02:17]} 22. Rad1 {[%clk 0:02:31]}  Rad8 {[%clk 0:02:14]} 23. Rxd2 {[%clk 0:02:31]}  Rxd2 {[%clk 0:02:14]} 24. Rd1 {[%clk 0:02:26]}  Qd7 {[%clk 0:02:11]} 25. Rxd2 {[%clk 0:02:16]}  Qxd2 {[%clk 0:02:11]} 26. g3 {[%clk 0:02:02]}  Qe1+ {[%clk 0:01:36]} 27. Nf1 {[%clk 0:01:59]}  Ne2+ {[%clk 0:01:31]} 28. Kg2 {[%clk 0:01:59]}  Nd4 {[%clk 0:01:31]} 29. Qg4 {[%clk 0:01:55]}  Qxb4 {[%clk 0:01:28]} 30. Ne3 {[%clk 0:01:47]}  Qe7 {[%clk 0:01:25]} 31. Qc8+ {[%clk 0:01:44]}  Kf7 {[%clk 0:01:25]} 32. c3 {[%clk 0:01:44]}  Ne6 {[%clk 0:01:15]} 33. Qxc6 {[%clk 0:01:31]}  Qc7 {[%clk 0:01:16]} 34. Qb5 {[%clk 0:01:28]}  Nc5 {[%clk 0:01:11]} 35. Qc4+ {[%clk 0:01:20]}  Kg6 {[%clk 0:01:10]} 36. Nf5 {[%clk 0:01:15]}  h5 {[%clk 0:01:02]} 37. Qg8 {[%clk 0:01:05]}  Nxe4 {[%clk 0:00:53]} 38. Nh4+ {[%clk 0:01:00]}  Kg5 {[%clk 0:00:48]} 39. Qh7 {[%clk 0:00:56]}  Qf7 {[%clk 0:00:23]} 40. Qxe4 {[%clk 0:00:55]}  Kh6 {[%clk 0:00:19]} 41. Nf5+ {[%clk 0:00:55]}  Kh7 {[%clk 0:00:19]} 42. Nd6+ {[%clk 0:00:49]}  Qg6 {[%clk 0:00:20]} 43. Qxg6+ {[%clk 0:00:49]}  Kxg6 {[%clk 0:00:21]} 44. Nc8 {[%clk 0:00:50]}  a5 {[%clk 0:00:21]} 45. Nxb6 {[%clk 0:00:50]}  f5 {[%clk 0:00:22]} 46. Nc4 {[%clk 0:00:49]}  e4 {[%clk 0:00:23]} 47. Nxa5 {[%clk 0:00:49]}  Kf6 {[%clk 0:00:23]} 48. Nc4 {[%clk 0:00:50]} 1-0


[Site "https://www.chess.com"]

[Event "Titled Tuesday Blitz February 07 Early 2023"]
[White "Cepo, Toni"]
[Black "Jimenez, Joaquin"]
[WhiteFideId "4675916"]
[BlackFideId "109860"]
[WhiteElo "2145"]
[BlackElo "2195"]
[Result "1-0"]
[Round "09"]
[TimeControl "180+2"]
[Date "2023.02.07"]
[WhiteClock "0:00:22"]
[BlackClock "0:00:14"]

1. e4 {[%clk 0:02:58]}  e6 {[%clk 0:03:00]} 2. d4 {[%clk 0:02:57]}  d5 {[%clk 0:02:59]} 3. Nd2 {[%clk 0:02:57]}  Nf6 {[%clk 0:02:58]} 4. e5 {[%clk 0:02:57]}  Nfd7 {[%clk 0:02:58]} 5. c3 {[%clk 0:02:57]}  c5 {[%clk 0:02:59]} 6. f4 {[%clk 0:02:56]}  Nc6 {[%clk 0:02:57]} 7. Ndf3 {[%clk 0:02:56]}  Be7 {[%clk 0:02:57]} 8. g3 {[%clk 0:02:53]}  f6 {[%clk 0:02:44]} 9. Kf2 {[%clk 0:02:52]}  fxe5 {[%clk 0:02:44]} 10. fxe5 {[%clk 0:02:51]}  O-O {[%clk 0:02:39]} 11. Kg2 {[%clk 0:02:51]}  cxd4 {[%clk 0:02:38]} 12. cxd4 {[%clk 0:02:51]}  Nb6 {[%clk 0:02:22]} 13. h4 {[%clk 0:02:46]}  Bd7 {[%clk 0:02:21]} 14. b3 {[%clk 0:02:38]}  Be8 {[%clk 0:02:16]} 15. Bd3 {[%clk 0:02:36]}  Nb4 {[%clk 0:02:07]} 16. Bb1 {[%clk 0:02:30]}  Rc8 {[%clk 0:02:04]} 17. Ng5 {[%clk 0:02:27]}  h6 {[%clk 0:02:01]} 18. a3 {[%clk 0:02:24]}  Bxg5 {[%clk 0:01:34]} 19. Bxg5 {[%clk 0:02:17]}  hxg5 {[%clk 0:01:32]} 20. axb4 {[%clk 0:02:17]}  g4 {[%clk 0:01:13]} 21. Qd3 {[%clk 0:02:12]}  Rf5 {[%clk 0:01:05]} 22. Ne2 {[%clk 0:02:04]}  Bg6 {[%clk 0:01:03]} 23. Nf4 {[%clk 0:01:56]}  Qe8 {[%clk 0:01:02]} 24. Nxg6 {[%clk 0:01:33]}  Qxg6 {[%clk 0:01:01]} 25. Rf1 {[%clk 0:01:34]}  Rcf8 {[%clk 0:00:51]} 26. Rxf5 {[%clk 0:01:33]}  exf5 {[%clk 0:00:47]} 27. Rxa7 {[%clk 0:01:29]}  Qc6 {[%clk 0:00:46]} 28. Qc2 {[%clk 0:01:08]}  Qb5 {[%clk 0:00:35]} 29. Rxb7 {[%clk 0:00:56]}  Qxb4 {[%clk 0:00:35]} 30. Qd3 {[%clk 0:00:29]}  Qa5 {[%clk 0:00:22]} 31. e6 {[%clk 0:00:26]}  Nc8 {[%clk 0:00:17]} 32. b4 {[%clk 0:00:23]}  Qa3 {[%clk 0:00:14]} 33. Qxa3 {[%clk 0:00:22]} 1-0


[Site "https://www.chess.com"]

[Event "Titled Tuesday Blitz February 07 Early 2023"]
[White "Mirzanurov, Bulat"]
[Black "Alhadad, Mahmoud"]
[WhiteFideId "4184521"]
[BlackFideId "11501863"]
[WhiteElo "2232"]
[BlackElo "1840"]
[Result "1-0"]
[Round "09"]
[TimeControl "180+2"]
[Date "2023.02.07"]
[WhiteClock "0:00:14"]
[BlackClock "0:00:04"]

1. e4 {[%clk 0:03:00]}  d5 {[%clk 0:02:59]} 2. exd5 {[%clk 0:03:00]}  Nf6 {[%clk 0:03:00]} 3. Nf3 {[%clk 0:02:59]}  Bg4 {[%clk 0:03:00]} 4. d4 {[%clk 0:02:56]}  Qxd5 {[%clk 0:03:00]} 5. Be2 {[%clk 0:02:55]}  Nc6 {[%clk 0:03:00]} 6. h3 {[%clk 0:02:54]}  Bxf3 {[%clk 0:02:59]} 7. Bxf3 {[%clk 0:02:54]}  Qf5 {[%clk 0:02:59]} 8. c4 {[%clk 0:02:40]}  e6 {[%clk 0:02:59]} 9. Nc3 {[%clk 0:02:34]}  Bd6 {[%clk 0:02:59]} 10. Be3 {[%clk 0:02:33]}  O-O {[%clk 0:02:46]} 11. Qa4 {[%clk 0:02:30]}  Nb4 {[%clk 0:02:33]} 12. O-O-O {[%clk 0:02:20]}  Nd3+ {[%clk 0:02:27]} 13. Rxd3 {[%clk 0:02:20]}  Qxd3 {[%clk 0:02:26]} 14. Rd1 {[%clk 0:02:20]}  Qg6 {[%clk 0:02:17]} 15. g4 {[%clk 0:02:16]}  c6 {[%clk 0:02:14]} 16. Be2 {[%clk 0:02:13]}  Nd7 {[%clk 0:01:55]} 17. g5 {[%clk 0:02:06]}  Qf5 {[%clk 0:01:38]} 18. Bg4 {[%clk 0:02:00]}  Qg6 {[%clk 0:01:32]} 19. h4 {[%clk 0:01:58]}  h5 {[%clk 0:01:26]} 20. Be2 {[%clk 0:01:47]}  Qf5 {[%clk 0:01:24]} 21. Bxh5 {[%clk 0:01:23]}  Bf4 {[%clk 0:01:24]} 22. Be2 {[%clk 0:01:17]}  Bxe3+ {[%clk 0:01:24]} 23. fxe3 {[%clk 0:01:18]}  Qf2 {[%clk 0:01:14]} 24. Kd2 {[%clk 0:01:16]}  Qxh4 {[%clk 0:01:11]} 25. g6 {[%clk 0:01:16]}  fxg6 {[%clk 0:01:07]} 26. c5 {[%clk 0:01:15]}  Nf6 {[%clk 0:01:04]} 27. Qb3 {[%clk 0:01:13]}  Nd5 {[%clk 0:01:00]} 28. Na4 {[%clk 0:00:41]}  Rf2 {[%clk 0:00:53]} 29. Qxb7 {[%clk 0:00:38]}  Raf8 {[%clk 0:00:47]} 30. Qxc6 {[%clk 0:00:35]}  Rxe2+ {[%clk 0:00:47]} 31. Kxe2 {[%clk 0:00:34]}  Qf2+ {[%clk 0:00:46]} 32. Kd3 {[%clk 0:00:34]}  Qxe3+ {[%clk 0:00:46]} 33. Kc4 {[%clk 0:00:34]}  Qe2+ {[%clk 0:00:36]} 34. Rd3 {[%clk 0:00:33]}  Nf4 {[%clk 0:00:36]} 35. Qf3 {[%clk 0:00:31]}  Qxd3+ {[%clk 0:00:27]} 36. Qxd3 {[%clk 0:00:31]}  Nxd3 {[%clk 0:00:28]} 37. Kxd3 {[%clk 0:00:32]}  g5 {[%clk 0:00:28]} 38. b4 {[%clk 0:00:31]}  g4 {[%clk 0:00:28]} 39. Nc3 {[%clk 0:00:29]}  g3 {[%clk 0:00:28]} 40. Ne2 {[%clk 0:00:29]}  g2 {[%clk 0:00:29]} 41. c6 {[%clk 0:00:28]}  a6 {[%clk 0:00:25]} 42. a4 {[%clk 0:00:27]}  Rb8 {[%clk 0:00:14]} 43. b5 {[%clk 0:00:26]}  axb5 {[%clk 0:00:14]} 44. axb5 {[%clk 0:00:27]}  Kf7 {[%clk 0:00:08]} 45. c7 {[%clk 0:00:23]}  Rc8 {[%clk 0:00:06]} 46. b6 {[%clk 0:00:24]}  Ke7 {[%clk 0:00:06]} 47. b7 {[%clk 0:00:24]}  Kd7 {[%clk 0:00:06]} 48. b8=Q {[%clk 0:00:24]}  Rxc7 {[%clk 0:00:06]} 49. Qg8 {[%clk 0:00:21]}  Kd6 {[%clk 0:00:05]} 50. Qf8+ {[%clk 0:00:20]}  Kc6 {[%clk 0:00:05]} 51. Qf3+ {[%clk 0:00:20]}  Kb5 {[%clk 0:00:04]} 52. Qxg2 {[%clk 0:00:21]}  Rd7 {[%clk 0:00:04]} 53. Qe4 {[%clk 0:00:19]}  Rd5 {[%clk 0:00:04]} 54. Qxe6 {[%clk 0:00:19]}  Rd6 {[%clk 0:00:01]} 55. Qxd6 {[%clk 0:00:18]}  Ka4 {[%clk 0:00:01]} 56. Qe7 {[%clk 0:00:17]}  g5 {[%clk 0:00:02]} 57. Qxg5 {[%clk 0:00:17]}  Kb3 {[%clk 0:00:01]} 58. d5 {[%clk 0:00:17]}  Kb2 {[%clk 0:00:02]} 59. d6 {[%clk 0:00:17]}  Kb1 {[%clk 0:00:03]} 60. d7 {[%clk 0:00:15]}  Kb2 {[%clk 0:00:04]} 61. d8=Q {[%clk 0:00:14]}  Kb1 {[%clk 0:00:05]} 62. Qb5+ {[%clk 0:00:14]}  Ka2 {[%clk 0:00:04]} 63. Qda5# {[%clk 0:00:14]} 1-0


[Site "https://www.chess.com"]

[Event "Titled Tuesday Blitz February 07 Early 2023"]
[White "Abdilkhair, Abilmansur"]
[Black "ritanovikova"]
[WhiteFideId "13716417"]
[WhiteElo "2268"]
[BlackElo "2202"]
[Result "1-0"]
[Round "09"]
[TimeControl "180+2"]
[Date "2023.02.07"]
[WhiteClock "0:00:09"]
[BlackClock "0:00:11"]

1. d4 {[%clk 0:03:00]}  e6 {[%clk 0:02:52]} 2. c4 {[%clk 0:03:01]}  Nf6 {[%clk 0:02:51]} 3. Nf3 {[%clk 0:03:01]}  Bb4+ {[%clk 0:02:49]} 4. Nc3 {[%clk 0:02:59]}  d5 {[%clk 0:02:45]} 5. Qa4+ {[%clk 0:02:57]}  Nc6 {[%clk 0:02:45]} 6. e3 {[%clk 0:02:56]}  O-O {[%clk 0:02:42]} 7. Bd2 {[%clk 0:02:53]}  a6 {[%clk 0:02:36]} 8. cxd5 {[%clk 0:02:45]}  exd5 {[%clk 0:02:34]} 9. Bd3 {[%clk 0:02:45]}  Bd6 {[%clk 0:02:19]} 10. O-O {[%clk 0:02:44]}  Bg4 {[%clk 0:02:16]} 11. Ne1 {[%clk 0:02:41]}  Re8 {[%clk 0:02:13]} 12. h3 {[%clk 0:02:41]}  Bh5 {[%clk 0:02:12]} 13. Rc1 {[%clk 0:02:40]}  Bg6 {[%clk 0:02:03]} 14. Bxg6 {[%clk 0:02:26]}  hxg6 {[%clk 0:02:04]} 15. Nd3 {[%clk 0:02:27]}  g5 {[%clk 0:01:56]} 16. Qd1 {[%clk 0:02:14]}  Qd7 {[%clk 0:01:52]} 17. Na4 {[%clk 0:02:06]}  b6 {[%clk 0:01:49]} 18. Nc3 {[%clk 0:01:41]}  Ne7 {[%clk 0:01:36]} 19. Ne5 {[%clk 0:01:35]}  Qf5 {[%clk 0:01:34]} 20. Qf3 {[%clk 0:01:26]}  Bxe5 {[%clk 0:01:27]} 21. dxe5 {[%clk 0:01:13]}  Qxe5 {[%clk 0:01:21]} 22. Rfd1 {[%clk 0:01:05]}  c6 {[%clk 0:01:14]} 23. Ne2 {[%clk 0:01:04]}  c5 {[%clk 0:01:03]} 24. Bc3 {[%clk 0:01:03]}  Qe4 {[%clk 0:00:52]} 25. Qg3 {[%clk 0:01:03]}  Qf5 {[%clk 0:00:41]} 26. Qd6 {[%clk 0:00:56]}  Qe6 {[%clk 0:00:37]} 27. Qxe6 {[%clk 0:00:45]}  fxe6 {[%clk 0:00:38]} 28. b4 {[%clk 0:00:39]}  Rac8 {[%clk 0:00:37]} 29. bxc5 {[%clk 0:00:37]}  bxc5 {[%clk 0:00:38]} 30. Be5 {[%clk 0:00:31]}  Kf7 {[%clk 0:00:35]} 31. Bd6 {[%clk 0:00:28]}  c4 {[%clk 0:00:35]} 32. Nd4 {[%clk 0:00:27]}  Nf5 {[%clk 0:00:35]} 33. Be5 {[%clk 0:00:26]}  Nxd4 {[%clk 0:00:34]} 34. Bxd4 {[%clk 0:00:27]}  Red8 {[%clk 0:00:33]} 35. g4 {[%clk 0:00:23]}  e5 {[%clk 0:00:31]} 36. Bc3 {[%clk 0:00:21]}  Ke6 {[%clk 0:00:30]} 37. Ba5 {[%clk 0:00:21]}  Rd7 {[%clk 0:00:30]} 38. Rb1 {[%clk 0:00:21]}  Ne4 {[%clk 0:00:29]} 39. Rb6+ {[%clk 0:00:20]}  Rd6 {[%clk 0:00:28]} 40. Rb7 {[%clk 0:00:20]}  Rg8 {[%clk 0:00:26]} 41. Bb4 {[%clk 0:00:20]}  Rc6 {[%clk 0:00:24]} 42. Re7+ {[%clk 0:00:19]}  Kf6 {[%clk 0:00:23]} 43. Rxd5 {[%clk 0:00:20]}  c3 {[%clk 0:00:22]} 44. Rexe5 {[%clk 0:00:20]}  c2 {[%clk 0:00:20]} 45. Rf5+ {[%clk 0:00:16]}  Kg6 {[%clk 0:00:20]} 46. Ba3 {[%clk 0:00:15]}  c1=Q+ {[%clk 0:00:20]} 47. Bxc1 {[%clk 0:00:16]}  Rxc1+ {[%clk 0:00:21]} 48. Kg2 {[%clk 0:00:16]}  Re8 {[%clk 0:00:19]} 49. Ra5 {[%clk 0:00:14]}  Rc2 {[%clk 0:00:19]} 50. Rxa6+ {[%clk 0:00:14]}  Kh7 {[%clk 0:00:19]} 51. Ra7 {[%clk 0:00:13]}  Nd6 {[%clk 0:00:18]} 52. Rxg5 {[%clk 0:00:13]}  Rg8 {[%clk 0:00:16]} 53. Rd5 {[%clk 0:00:12]}  Ne4 {[%clk 0:00:16]} 54. Rf5 {[%clk 0:00:12]}  Kg6 {[%clk 0:00:14]} 55. Rf4 {[%clk 0:00:12]}  Ng5 {[%clk 0:00:14]} 56. h4 {[%clk 0:00:10]}  Nh7 {[%clk 0:00:12]} 57. Ra6+ {[%clk 0:00:07]}  Nf6 {[%clk 0:00:11]} 58. g5 {[%clk 0:00:08]}  Rd8 {[%clk 0:00:10]} 59. gxf6 {[%clk 0:00:08]}  gxf6 {[%clk 0:00:11]} 60. Raxf6+ {[%clk 0:00:08]}  Kg7 {[%clk 0:00:11]} 61. a4 {[%clk 0:00:08]}  Rg8 {[%clk 0:00:11]} 62. Rg4+ {[%clk 0:00:07]}  Kxf6 {[%clk 0:00:10]} 63. Rxg8 {[%clk 0:00:07]}  Rc4 {[%clk 0:00:11]} 64. Kg3 {[%clk 0:00:05]}  Rxa4 {[%clk 0:00:11]} 65. Rg4 {[%clk 0:00:06]}  Ra8 {[%clk 0:00:11]} 66. Rd4 {[%clk 0:00:07]}  Ke5 {[%clk 0:00:11]} 67. Rg4 {[%clk 0:00:05]}  Rf8 {[%clk 0:00:11]} 68. Rg5+ {[%clk 0:00:06]}  Kf6 {[%clk 0:00:10]} 69. Rc5 {[%clk 0:00:05]}  Rg8+ {[%clk 0:00:10]} 70. Kf3 {[%clk 0:00:05]}  Rh8 {[%clk 0:00:11]} 71. h5 {[%clk 0:00:05]}  Ke6 {[%clk 0:00:11]} 72. e4 {[%clk 0:00:05]}  Kd6 {[%clk 0:00:11]} 73. Rd5+ {[%clk 0:00:05]}  Ke6 {[%clk 0:00:11]} 74. Ke3 {[%clk 0:00:06]}  Rf8 {[%clk 0:00:12]} 75. f4 {[%clk 0:00:07]}  Rh8 {[%clk 0:00:12]} 76. Re5+ {[%clk 0:00:07]}  Kf6 {[%clk 0:00:13]} 77. Ra5 {[%clk 0:00:08]}  Rb8 {[%clk 0:00:12]} 78. Ra6+ {[%clk 0:00:09]}  Kg7 {[%clk 0:00:13]} 79. f5 {[%clk 0:00:09]}  Rb3+ {[%clk 0:00:14]} 80. Kf4 {[%clk 0:00:10]}  Rh3 {[%clk 0:00:14]} 81. Kg5 {[%clk 0:00:10]}  Rg3+ {[%clk 0:00:15]} 82. Kf4 {[%clk 0:00:10]}  Rg2 {[%clk 0:00:14]} 83. h6+ {[%clk 0:00:11]}  Kh7 {[%clk 0:00:14]} 84. Ke5 {[%clk 0:00:11]}  Rg1 {[%clk 0:00:15]} 85. Rg6 {[%clk 0:00:10]}  Rd1 {[%clk 0:00:16]} 86. Ke6 {[%clk 0:00:10]}  Rd8 {[%clk 0:00:16]} 87. e5 {[%clk 0:00:10]}  Ra8 {[%clk 0:00:17]} 88. Kd5 {[%clk 0:00:09]}  Ra5+ {[%clk 0:00:17]} 89. Kd6 {[%clk 0:00:09]}  Ra6+ {[%clk 0:00:17]} 90. Kd5 {[%clk 0:00:08]}  Ra5+ {[%clk 0:00:17]} 91. Ke4 {[%clk 0:00:08]}  Ra4+ {[%clk 0:00:18]} 92. Ke3 {[%clk 0:00:08]}  Ra5 {[%clk 0:00:18]} 93. Re6 {[%clk 0:00:08]}  Ra3+ {[%clk 0:00:17]} 94. Kf4 {[%clk 0:00:08]}  Ra4+ {[%clk 0:00:17]} 95. Kg5 {[%clk 0:00:08]}  Ra8 {[%clk 0:00:17]} 96. Re7+ {[%clk 0:00:08]}  Kh8 {[%clk 0:00:17]} 97. Kg6 {[%clk 0:00:09]}  Rg8+ {[%clk 0:00:17]} 98. Kf6 {[%clk 0:00:07]}  Rf8+ {[%clk 0:00:17]} 99. Ke6 {[%clk 0:00:07]}  Ra8 {[%clk 0:00:16]} 100. f6 {[%clk 0:00:07]}  Ra6+ {[%clk 0:00:15]} 101. Kf5 {[%clk 0:00:07]}  Ra8 {[%clk 0:00:13]} 102. f7 {[%clk 0:00:07]}  Rf8 {[%clk 0:00:13]} 103. Re8 {[%clk 0:00:07]}  Kh7 {[%clk 0:00:10]} 104. Rxf8 {[%clk 0:00:08]}  Kxh6 {[%clk 0:00:11]} 105. Rh8+ {[%clk 0:00:08]}  Kg7 {[%clk 0:00:11]} 106. f8=Q# {[%clk 0:00:09]} 1-0


[Site "https://www.chess.com"]

[Event "Titled Tuesday Blitz February 07 Early 2023"]
[White "Rosenberg, Evan S"]
[Black "Perez Gormaz, Matias"]
[WhiteFideId "2019299"]
[BlackFideId "3406342"]
[WhiteElo "1956"]
[BlackElo "2406"]
[Result "1/2-1/2"]
[Round "09"]
[TimeControl "180+2"]
[Date "2023.02.07"]
[WhiteClock "0:01:49"]
[BlackClock "0:02:19"]

1. d4 {[%clk 0:03:00]}  d5 {[%clk 0:02:45]} 2. Nf3 {[%clk 0:02:59]}  c6 {[%clk 0:02:44]} 3. c3 {[%clk 0:02:59]}  Bf5 {[%clk 0:02:42]} 4. Qb3 {[%clk 0:02:58]}  Qb6 {[%clk 0:02:42]} 5. Bf4 {[%clk 0:02:50]}  Nd7 {[%clk 0:02:42]} 6. Nbd2 {[%clk 0:02:49]}  e6 {[%clk 0:02:41]} 7. h3 {[%clk 0:02:48]}  h6 {[%clk 0:02:41]} 8. e3 {[%clk 0:02:48]}  Ngf6 {[%clk 0:02:41]} 9. Be2 {[%clk 0:02:46]}  Be7 {[%clk 0:02:42]} 10. O-O {[%clk 0:02:46]}  O-O {[%clk 0:02:43]} 11. c4 {[%clk 0:02:40]}  c5 {[%clk 0:02:33]} 12. cxd5 {[%clk 0:02:35]}  Nxd5 {[%clk 0:02:32]} 13. Bh2 {[%clk 0:02:26]}  Bh7 {[%clk 0:02:24]} 14. e4 {[%clk 0:02:17]}  N5f6 {[%clk 0:02:23]} 15. e5 {[%clk 0:01:53]}  Nd5 {[%clk 0:02:22]} 16. Nc4 {[%clk 0:01:49]}  Qxb3 {[%clk 0:02:21]} 17. axb3 {[%clk 0:01:49]}  Rfc8 {[%clk 0:02:19]} 1/2-1/2


[Site "https://www.chess.com"]